{"text_format":"1","workbook":"xlsx","n_sheets":1,"sheets":["conceptos"],"not_rendered":{"charts":0,"images":2,"macros":1,"external_links":0,"defined_names":1,"comments":0,"pivot_tables":0},"unopened":[],"bounds":{"document_bytes":16777216,"sheet_cells":100000,"rows_first":2000,"rows_last":500,"rows_between":2000,"halvings":0,"cell_chars":16384,"cell_head_chars":4096},"cells_cut":0,"cells_raw":0,"read":"whole","date_system":"1900"}

{"sheet":"conceptos","index":0,"n_rows":62,"n_cols":8,"rows_kept":62,"cut":false,"hidden":false,"merged":[[59,0,59,4],[60,0,61,4],[13,0,13,6],[0,2,0,5],[9,2,9,5],[1,2,3,5],[4,2,4,3],[6,2,6,3],[7,2,7,3],[4,4,4,5],[5,4,5,5],[6,4,6,5],[7,4,7,5],[10,2,10,5],[11,2,11,5],[5,1,8,1]]}
[null,"GOBIERNO DEL ESTADO DE JALISCO","LICITACIÓN PÚBLICA ESTATAL"]
[null,"INSTITUTO DE LA INFRAESTRUCTURA FÍSICA EDUCATIVA DEL","INFEJAL-E-REMB2020-B-REH-06685-LP-0167-2021"]
[null,"ESTADO DE JALISCO"]
[]
[null,"DESCRIPCIÓN GENERAL DE LOS TRABAJOS:","FECHA DE INICIO:"]
[null,null,null,"FECHA DE TERMINACIÓN:"]
[null,null,"PLAZO DE EJECUCIÓN:"]
[null,null,"FECHA:"]
[]
[null,"RAZÓN SOCIAL DEL LICITANTE:","NOMBRE, CARGO Y FIRMA DEL LICITANTE:",null,null,null,"DOCUMENTO"]
[]
[]
[]
["PRESUPUESTO DE OBRA"]
[]
["CLAVE","DESCRIPCIÓN","UNIDAD","CANTIDAD","PRECIO UNITARIO ($)","PRECIO UNITARIO ($) CON LETRA","IMPORTE ($) M.N."]
["TRABAJO : BAS-REH-06685","CONSTRUCCIÓN DE BARDA PERIMETRAL Y RED PLUVIAL EN LA ESCUELA SECUNDARIA LUIS MONTEJANO CCT 14DES0139D, UBICADA EN EL FRACC. VILLAS DE ANDALUCÍA, MUNICIPIO DE JUANACATLÁN, JALISCO.",null,null,null,null,{"$f":"TEXT(SUM(G18 + G42), \"$ #,##0.00 ;\")","v":"$ 0.00 "}]
["33A","MURO DIVISORIO",null,null,null,null,{"$f":"TEXT(SUM(G19 + G21 + G25 + G31 + G37 + G40), \"$ #,##0.00 ;\")","v":"$ 0.00 "}]
["33A.01(140)","DEMOLICIONES, DESMONTAJES Y MECANICA DE SUELOS    ",null,null,null,null,{"$f":"TEXT(SUM(G20:G20), \"$ #,##0.00 ;\")","v":"$ 0.00 "}]
[140432,"DESMONTAJE DE CERCA PERIMETRAL A BASE DE MALLA CICLON DE 2.00 A 2.50 MTS DE ALTURA, EXISTENTE EN OBRA, SIN RECUPERACION, INCLUYE:  RETIRO DE POSTES, MALLA,  ALAMBRE DE PUAS, MANIOBRAS DE ARRASTRE, HERRAMIENTAS, MANO DE OBRA Y RETIRO DE MATERIALES DE DESPERDICIO FUERA DE LA OBRA.","ML ","45.5500",0,"CERO PESOS 00/100 M.N.",0,390906]
["33A.02(150)","TRABAJOS PRELIMINARES                             ",null,null,null,null,{"$f":"TEXT(SUM(G22:G24), \"$ #,##0.00 ;\")","v":"$ 0.00 "}]
[150120,"TRAZO Y NIVELACION DE EXTERIORES ESTABLECIENDO REFERENCIAS DEFINITIVAS, CON TRANSITO Y NIVEL (EQUIPO TOPOGRAFICO), INCLUYE: PERSONAL TECNICO CALIFICADO, ESTACAS, MOJONERAS, LOCALIZACION DE EJES Y/O ENTRE EJES, BANCOS DE NIVEL, MATERIALES PARA SEÑALAMIENTO, EQUIPO, HERRAMIENTA Y MANO DE OBRA.","M2 ","27.3500",0,"CERO PESOS 00/100 M.N.",0,390907]
[152204,"EXCAVACION EN CEPAS POR CUALQUIER MEDIO, MATERIAL TIPO \"B\", DE 0 A 2.00 M. DE PROFUNDIDAD, EN SECO, INCLUYE: AFINE DE TALUDES Y FONDO, TRASPALEOS,  MOVIMIENTOS Y ACARREOS DENTRO DE LA OBRA, HERRAMIENTAS Y MANO DE OBRA, MEDIDO EN BANCO.","M3 ","13.6500",0,"CERO PESOS 00/100 M.N.",0,390908]
[156002,"CARGA POR CUALQUIER MEDIO Y ACARREO EN CAMION DE MATERIAL DE DESPERDICIO PRODUCTO DE LAS EXCAVACIONES FUERA DE LA OBRA, A LUGAR PERMITIDO POR LAS AUTORIDADES CORRESPONDIENTES, MEDIDO EN BANCO. INCLUYE CARGA,  ACARREO Y DESCARGA A TIRO LIBRE, HERRAMIENTA, EQUIPO, MATERIALES DE CONSUMO Y MANO DE OBRA.","M3 ","13.6500",0,"CERO PESOS 00/100 M.N.",0,390909]
["33A.03(160)","CIMENTACION                                       ",null,null,null,null,{"$f":"TEXT(SUM(G26:G30), \"$ #,##0.00 ;\")","v":"$ 0.00 "}]
[162002,"CIMIENTO DE PIEDRA BRAZA ACOMODADA PIEDRA POR PIEDRA, ASENTADA CON MORTERO CEMENTO-ARENA  EN PROPORCION 1:3. INCLUYE: MATERIALES, DESPERDICIOS, HERRAMIENTAS, LIMPIEZA, MANO DE OBRA Y ACARREO DE MATERIALES AL SITIO DE SU UTILIZACION.","M3 ","13.6500",0,"CERO PESOS 00/100 M.N.",0,390910]
[162116,"MAMPOSTERIA DE PIEDRA BRAZA, ACABADO APARENTE DOS CARAS DE 0 A 1.50 MTS, ASENTADA CON  CEMENTO-ARENA 1:3, INCLUYE: MATERIALES, HERRAMIENTAS, PLOMEO,  LIMPIEZA, MANO DE OBRA Y ACARREO DE MATERIALES AL SITIO DE SU UTILIZACION.","M3 ","12.3000",0,"CERO PESOS 00/100 M.N.",0,390911]
[162404,"NIVELACION DE MURO DE MAMPOSTERIA CON RAJUELA DE PIEDRA BRAZA JUNTEADA CON MORTERO CEM-ARE 1:3. DE 0.10 M. DE ESPESOR X 0.40 M. DE ANCHO PROMEDIO. INCLUYE: NIVELACION, TRAZO, MANO DE OBRA Y HERRAMIENTA. (NO INCLUYE MATERIALES)","ML ","45.5500",0,"CERO PESOS 00/100 M.N.",0,390912]
[180102,"RELLENO COMPACTADO AL 90 % PROCTOR, CON MATERIAL DE BANCO, EN CAPAS DE 20 CM DE ESPESOR, AGREGANDO AGUA PARA LOGRAR SU HUMEDAD OPTIMA, AL 90%. POR CUALQUIER MEDIO, INCLUYE: SUMINISTRO DE AGUA PARA LOGRAR HUMEDAD OPTIMA, TENDIDO, TRASPALEOS,  DESPERDICIOS, EQUIPO, PRUEBAS DE COMPACTACION, AFINE, NIVELACION, HERRAMIENTAS, MANO DE OBRA Y  ACARREO HASTA EL SITIO DE SU COLOCACION.  (VOLUMEN MEDIDO COMPACTADO).","M3 ","1.3000",0,"CERO PESOS 00/100 M.N.",0,390913]
[192810,"BASE PARA CASTILLO DE 40.0 X 40.0 X 50.0 CM, EN CIMENTACION DE PIEDRA, CON CONCRETO F'C=150 KG/CM2, TMA=3/4\", CON 4 VARILLAS DE 3/8\" DE DIAMETRO Y ESTRIBOS DE 1/4\" @ 15.0 CM. CIMBRA COMUN,  INCLUYE: CIMBRADO Y DESCIMBRADO, COLADO, VIBRADO, CURADO, MATERIALES, DESPERDICIOS, HERRAMIENTAS, LIMPIEZA, MANO DE OBRA Y ACARREO DE MATERIALES AL SITIO DE SU UTILIZACION.","PZA","20.0000",0,"CERO PESOS 00/100 M.N.",0,390914]
["33A.04(310)","MUROS, CADENAS, CASTILLOS Y REPIZONES.            ",null,null,null,null,{"$f":"TEXT(SUM(G32:G36), \"$ #,##0.00 ;\")","v":"$ 0.00 "}]
[167204,"DALA DE DESPLANTE DE CONCRETO F´C= 150 KG/CM2, T.M.A.= 3/4\", CON SECCION DE 14 X 20 CM., ARMADA CON 4 VARILLAS DEL #3 Y ESTRIBOS DEL #2 @ 20 CM., INCLUYE: ARMADO, COLADO, CURADO, VIBRADO, CIMBRA COMUN, DESCIMBRA, DESPERDICIOS, TRASLAPES, CRUCES DE VARILLAS CON ELEMENTOS TRANSVERSALES, ANDAMIOS, MANO DE OBRA, HERRAMIENTA Y ACARREO DE MATERIALES AL SITIO DE SU UTILIZACION, A CUALQUIER ALTURA.","ML ","45.5500",0,"CERO PESOS 00/100 M.N.",0,390915]
[310207,"DALA DE CONCRETO F'C=150 KG/CM2, T.M.A.=3/4\", CON SECCION DE 14 X 15 CMS., ARMADA CON 4 VARILLAS DEL # 3 Y ESTRIBOS DEL NO. 2 @ 15 CMS., INCLUYE: ARMADO, COLADO, CURADO, VIBRADO, CIMBRA COMUN, DESCIMBRA, TRASLAPES, CRUCES DE VARILLAS CON ELEMENTOS TRANSVERSALES, DESPERDICIOS, MANO DE OBRA, HERRAMIENTA Y ACARREO DE MATERIALES AL SITIO DE SU UTILIZACION, A CUALQUIER ALTURA.","ML ","45.5500",0,"CERO PESOS 00/100 M.N.",0,390916]
[312210,"CASTILLO DE CONCRETO F´C= 150 KGS/CM2 CON UNA SECCION DE 14 X 15 CM., ARMADO CON 4 VARILLAS DEL #3, ESTRIBOS DEL #2@15 CM.  INCLUYE: ARMADO, COLADO, CURADO, VIBRADO, CIMBRA COMUN, DESCIMBRA, TRASLAPES, CRUCES DE VARILLAS CON ELEMENTOS TRANSVERSALES, DESPERDICIOS, MANO DE OBRA, HERRAMIENTA Y ACARREO DE MATERIALES AL SITIO DE SU UTILIZACION, A CUALQUIER ALTURA.","ML ","41.5000",0,"CERO PESOS 00/100 M.N.",0,390917]
[314032,"MURO DE TABIQUE DE LAMA, DE 14 CMS. DE ESPESOR PROMEDIO, A SOGA, CON TABIQUE DE LAMA 7 X 14 X 28 CMS., ACABADO COMUN, ASENTADO CON MORTERO CEMENTO-ARENA EN PROPORCION 1:3, EN CUALQUIER NIVEL, INCLUYE: TRAZO, NIVELACION, PLOMEO, ANDAMIOS, DESPERDICIOS, MANO DE OBRA, LIMPIEZA Y ACARREO DE MATERIALES AL SITIO DE SU UTILIZACION.","M2 ","87.2000",0,"CERO PESOS 00/100 M.N.",0,390918]
[373502,"CEJA DE CONCRETO F'C=150 KG/CM2, TMA=3/4\" DE 12.0 X 18.0 CM DE SECCION PROMEDIO, ARMADA CON 1 VARILLA #3 (3/8\") Y ESTRIBOS DE 1/4\" @ 25.0 CM, EN CUALQUIER NIVEL. INCLUYE: CIMBRA APARENTE, DESCIMBRA, COLADO, VIBRADO, CURADO, PERFILADO, CHAFLANES, GOTERO, LIMPIEZA, HERRAMIENTAS, MATERIALES, DESPERDICIOS Y MANO DE OBRA.","ML ","91.1500",0,"CERO PESOS 00/100 M.N.",0,390919]
["33A.05(355)","RECUBRIMIENTOS Y ACABADOS                         ",null,null,null,null,{"$f":"TEXT(SUM(G38:G39), \"$ #,##0.00 ;\")","v":"$ 0.00 "}]
[355022,"APLANADO DE MUROS Y/O TECHOS CON MORTERO CEMENTO-CAL-ARENA DE RIO EN PROP. 1:2:6 DE 2 CM. DE ESPESOR PROMEDIO, A PLOMO Y REGLA, ACABADO APALILLADO FINO, INCLUYE: MATERIALES, DESPERDICIOS, ANDAMIOS, HERRAMIENTAS, PLOMEO, NIVELACION, REMATES, LIMPIEZA DEL AREA DE TRABAJO Y ACARREO DE MATERIALES AL SITIO DE SU UTILIZACION. A CUALQUIER NIVEL.\n","M2 ","214.2000",0,"CERO PESOS 00/100 M.N.",0,390920]
[357310,"BOQUILLAS EN MUROS DE 17 CMS DE ANCHO PROMEDIO, CON MORTERO CEM-ARE 1:4, ACABADO A PLOMO Y REGLA, INCLUYE REMATES Y ACARREO DE MATERIALES AL SITIO DE SU UTILIZACION A CUALQUIER NIVEL.","ML ","46.1000",0,"CERO PESOS 00/100 M.N.",0,390921]
["33A.06(393)","PINTURA                                           ",null,null,null,null,{"$f":"TEXT(SUM(G41:G41), \"$ #,##0.00 ;\")","v":"$ 0.00 "}]
[393022,"PINTURA VINIL-ACRÍLICA A BASE DE AGUA ACABADO SEMIMATE  LAVABLE, PARA INTERIORES Y EXTERIORES QUE NO DESPRENDA VAPORES TÓXICOS NI OLORES DESAGRADABLES, CON LAS SIGUIENTES CARACTERÍSTICAS ( SÓLIDOS POR PESO 46-52%, SÓLIDOS POR VOLUMEN 30-36%, VISCOSIDAD DE 100-130 UK A 25°C, DENSIDAD > O = 1.2 TON/M3., LAVABILIDAD > O = 4,000 CICLOS, TIEMPO DE SECADO AL TACTO, 30-40 MIN., TIEMPO DE SECADO DURO < O = 8 HRS., CICLO DE CURADO DE 7 DIAS, PH 6-8, RENDIMIENTO EN SUP. LISA 8-10 M2/LT., FINEZA DE MOLIDO (HEGMAN) 3-7 UH.)  EN MUROS APLANADOS DE MEZCLA APALILLADO O PULIDO, TRABAJO TERMINADO, A DOS MANOS, INCLUYE: MATERIALES MENORES Y DE CONSUMO, ANDAMIOS, PREPARACION DE LA SUPERFICIE, SELLADO DE LA SUPERFICIE, HERRAMIENTAS, LIMPIEZA, MANO DE OBRA Y  ACARREOS DE MATERIALES AL SITIO DE SU UTILIZACIÓN.","M2 ","222.5500",0,"CERO PESOS 00/100 M.N.",0,390922]
["03A","RED DE DRENAJE PLUVIAL",null,null,null,null,{"$f":"TEXT(SUM(G43 + G45), \"$ #,##0.00 ;\")","v":"$ 0.00 "}]
["03A.01(410)","CANCELERIA, HERRERIA, ALUMINIO, VIDRIOS Y CHAPAS  ",null,null,null,null,{"$f":"TEXT(SUM(G44:G44), \"$ #,##0.00 ;\")","v":"$ 0.00 "}]
[970842,"FABRICACION Y COLOCACION DE REJILLA PARA CANAL DE DESAGUE O REGISTRO ARENERO A BASE DE HERRERIA ESTRUCTURAL  CON ANGULO DE 1 1/2\" X 1/4\"  Y SOLERA DE 1 1/2\"  X  1/4\" INCL. CORTES, SOLDADURA, PINTURA DE TALLER, AJUSTES  Y DETALLES REALIZADOS EN OBRA DE ACUERDO A LO CONSTRUIDO. INCLUYE: ACARREOS, MATERIALES, DESPERDICIOS, HERRAMIENTAS, EQUIPO NECESARIO, MANO DE OBRA CALUFICADA Y TODO LO NECESARIO PARA SU CORRECTA EJECUCION.","M2 ","35.1500",0,"CERO PESOS 00/100 M.N.",0,390923]
["03A.02(565)","INSTALACION HIDRAULICA, SANITARIA Y GAS EN O. EXT.",null,null,null,null,{"$f":"TEXT(SUM(G46:G46), \"$ #,##0.00 ;\")","v":"$ 0.00 "}]
[596572,"FORJADO DE CANAL TRAPEZOIDAL PARA CAPTACION DE AGUAS PLUVIALES, A BASE DE PISO DE CONCRETO DE F'C=200 KG/CM2 Y 8 CMS. DE ESPESOR, CON DIMENSIONES TRANSVERSALES LIBRES DE 30 CM EN LA BASE, 70 CM. EN LA PARTE SUPERIOR,  PROFUNDIDAD DE 30 CM. Y CEJAS LATERALES DE 20 CMS. ACABADO RAYADO, INCLUYE: LIMPIEZA, TRAZO, EXCAVACION, AFINE, COMPACTACION, CIMBRA, NIVELACION, DESCIMBRA, COLADO, VIBRADO,  CURADO, RELLENOS, MATERIALES, HERRAMIENTAS, MANO DE OBRA Y ACARREO DE MATERIALES AL SITIO DE SU COLOCACION, TRABAJO TERMINADO.","ML ","68.5000",0,"CERO PESOS 00/100 M.N.",0,390924]
[null,"RESUMEN DE PARTIDAS"]
["BAS-REH-06685","CONSTRUCCIÓN DE BARDA PERIMETRAL Y RED PLUVIAL EN LA ESCUELA SECUNDARIA LUIS MONTEJANO CCT 14DES0139D, UBICADA EN EL FRACC. VILLAS DE ANDALUCÍA, MUNICIPIO DE JUANACATLÁN, JALISCO.",null,null,null,null,{"$f":"G17","v":"$ 0.00 "}]
["33A","MURO DIVISORIO",null,null,null,null,{"$f":"G18","v":"$ 0.00 "}]
["33A.01(140)","DEMOLICIONES, DESMONTAJES Y MECANICA DE SUELOS    ",null,null,null,null,{"$f":"G19","v":"$ 0.00 "}]
["33A.02(150)","TRABAJOS PRELIMINARES                             ",null,null,null,null,{"$f":"G21","v":"$ 0.00 "}]
["33A.03(160)","CIMENTACION                                       ",null,null,null,null,{"$f":"G25","v":"$ 0.00 "}]
["33A.04(310)","MUROS, CADENAS, CASTILLOS Y REPIZONES.            ",null,null,null,null,{"$f":"G31","v":"$ 0.00 "}]
["33A.05(355)","RECUBRIMIENTOS Y ACABADOS                         ",null,null,null,null,{"$f":"G37","v":"$ 0.00 "}]
["33A.06(393)","PINTURA                                           ",null,null,null,null,{"$f":"G40","v":"$ 0.00 "}]
["03A","RED DE DRENAJE PLUVIAL",null,null,null,null,{"$f":"G42","v":"$ 0.00 "}]
["03A.01(410)","CANCELERIA, HERRERIA, ALUMINIO, VIDRIOS Y CHAPAS  ",null,null,null,null,{"$f":"G43","v":"$ 0.00 "}]
["03A.02(565)","INSTALACION HIDRAULICA, SANITARIA Y GAS EN O. EXT.",null,null,null,null,{"$f":"G45","v":"$ 0.00 "}]
[]
["IMPORTE CON LETRA (IVA INCLUIDO)",null,null,null,null,"SUBTOTAL M.N.",{"$f":"TEXT(G17,  \"$ #,##0.00 ;\")","v":"$ 0.00 "}]
[{"$f":"UPPER(CONVERTIRNUM(ROUND( G17 * 1.16, 2)))","v":"CERO PESOS 00/100 M.N."},null,null,null,null,"IVA M.N.",{"$f":"TEXT(ROUND( G17 * 0.16, 2),  \"$ #,##0.00 ;\")","v":"$ 0.00 "}]
[null,null,null,null,null,"TOTAL M.N.",{"$f":"TEXT(ROUND( G17 * 1.16, 2),  \"$ #,##0.00 ;\")","v":"$ 0.00 "}]